bitfinex/quotes_SOLUSD_20240621
["timestamp","ask_amount","ask_price","bid_price","bid_amount"]
[1718996962929,7.87090624,132.01,131.86,22.7463372]
[1718996962930,20.0,132.0,131.86,22.7463372]
[1718996963123,6.0634,131.94,131.89,6.0655]
[1718996963426,7.87090624,132.01,131.86,22.7463372]
[1718996963427,6.063,131.95,131.9,6.0651]
[1718996963621,6.0634,131.94,131.89,6.0654]
[1718996963827,7.87090624,132.01,131.86,22.7463372]
[1718996964052,6.0622,131.97,131.92,6.0642]
[1718996964253,6.5605,132.04,131.88,23.0717]
[1718996964434,20.0,132.03,131.89,20.0]
[1718996964749,20.0,132.03,131.91,23.0717]
[1718996964963,6.32457056,132.04,131.91,23.0717]
[1718996965123,284.23271551,132.06,131.92,0.17]
[1718996965330,6.0613,131.99,131.94,6.0631]
[1718996965522,6.0616,131.98,131.93,6.0636]
[1718996965722,290.54044716,132.06,131.91,23.0717]
[1718996965970,6.0624,131.97,131.92,6.0639]
[1718996966127,6.0631,131.95,131.91,23.0717]
[1718996966323,100.0,132.05,131.91,23.0717]
[1718996966546,6.0634,131.94,131.91,23.0717]
[1718996967144,63.15963592,132.04,131.91,23.0717]
[1718996967145,53.15963592,132.04,131.91,23.0717]
[1718996967335,6.0623,131.97,131.92,6.0641]
[1718996967839,6.0616,131.98,131.93,6.0637]
[1718996968037,6.0613,131.99,131.94,6.0632]
[1718996968355,6.0615,131.98,131.94,6.0632]
[1718996968529,6.0627,131.96,131.91,23.0717]
[1718996968726,6.0623,131.97,131.92,6.064]
[1718996968925,6.0624,131.96,131.91,29.1362]
[1718996969638,20.0,132.05,131.91,23.0717]
[1718996969958,6.0635,131.94,131.91,23.0717]
[1718996970831,6.0642,131.92,131.91,23.0717]
[1718996971159,6.0639,131.93,131.91,23.0717]
[1718996971747,6.3995,132.01,131.86,0.8627372]
[1718996971748,6.0665,131.88,131.86,0.8627372]
[1718996971932,21.8147,132.01,131.86,0.8627372]
[1718996972145,6.0622,131.97,131.87,6.1102]
[1718996972449,6.0622,131.97,131.88,31.7923]
[1718996972754,6.0611,131.99,131.94,6.063]
[1718996973458,6.0606,132.0,131.95,6.0627]
[1718996973761,6.33017468,132.04,131.96,15.4574]
[1718996973939,6.0608,132.0,131.96,15.4574]
[1718996974539,6.0619,131.97,131.96,15.4574]
[1718996974842,6.0616,131.98,131.96,15.4574]
[1718996975241,6.0619,131.97,131.96,15.4574]
[1718996975645,6.0627,131.96,131.93,16.2532]
[1718996976164,6.0633,131.94,131.93,16.2532]
[1718996977241,6.0642,131.92,131.91,6.2867]
[1718996977437,6.0639,131.93,131.91,6.2867]
[1718996977653,6.063,131.95,131.91,6.2867]
[1718996977865,6.0634,131.94,131.91,6.2867]
[1718996978061,7.88952124,132.02,131.92,6.0642]
[1718996978257,6.0624,131.96,131.91,12.3513]
[1718996979137,6.0612,131.99,131.91,6.2867]
[1718996979358,6.0607,132.0,131.95,6.0626]
[1718996979654,6.0601,132.01,131.97,15.3277]
[1718996980040,6.0613,131.99,131.97,15.3277]
[1718996980245,7.8674465,132.06,131.97,15.3277]
[1718996980434,100.0,132.05,131.93,15.2834]
[1718996980642,6.0629,131.95,131.93,15.2834]
[1718996980860,6.0633,131.94,131.93,15.2834]
[1718996981046,6.0638,131.93,131.91,6.2867]
[1718996981353,16.1286,132.01,131.91,6.2867]
[1718996981556,6.0634,131.94,131.91,6.2867]
[1718996981864,16.1286,132.01,131.91,6.2867]
[1718996982047,6.3495,131.99,131.86,17.0069372]
[1718996982249,6.0659,131.89,131.86,17.0069372]
[1718996982763,366.7495,131.99,131.86,17.0069372]
[1718996982971,6.0659,131.89,131.86,17.0069372]
[1718996983470,6.0653,131.9,131.86,17.0069372]
[1718996983842,6.0652,131.9,131.86,17.0069372]
[1718996984044,6.0657,131.89,131.86,17.0069372]
[1718996984243,120.0,131.98,131.86,17.0069372]
[1718996984244,6.0653,131.9,131.86,17.0069372]
[1718996984464,120.0,131.98,131.86,17.0069372]
[1718996984465,20.0,131.98,131.86,17.0069372]
[1718996984690,45.0,131.97,131.86,17.0069372]
[1718996984888,6.0658,131.89,131.86,17.0069372]
[1718996985172,6.0662,131.88,131.86,0.8627372]
[1718996985381,20.0,131.96,131.86,0.8627372]
[1718996985564,45.0,131.95,131.86,0.8627372]
[1718996985766,20.0,131.94,131.86,0.8627372]
[1718996986277,6.0652,131.9,131.86,0.8627372]
[1718996986869,6.0656,131.89,131.86,0.8627372]
[1718996987265,20.0,131.94,131.86,0.8627372]
[1718996987465,6.0658,131.89,131.86,0.8627372]
[1718996987874,6.0653,131.9,131.86,0.8627372]
[1718996988272,6.0647,131.91,131.87,6.0665]
[1718996988594,6.0647,131.92,131.87,6.0665]
[1718996988795,6.0644,131.92,131.87,6.0665]
[1718996988981,6.0648,131.91,131.86,6.9295372]
[1718996989182,6.0648,131.91,131.87,6.0665]
[1718996989394,6.0644,131.92,131.87,6.0665]
[1718996989893,6.0652,131.91,131.86,6.9297372]
[1718996990286,6.0653,131.9,131.86,0.8627372]
[1718996991073,6.0649,131.91,131.86,6.9296372]
[1718996992383,6.0655,131.9,131.86,0.8627372]
[1718996993911,7.87031729,131.94,131.86,0.8627372]
[1718996994081,6.0665,131.87,131.86,0.8627372]
[1718996994408,6.0663,131.88,131.86,0.8627372]
[1718996995290,6.0665,131.87,131.86,0.8627372]
[1718996995898,6.0662,131.88,131.86,0.8627372]
[1718996996082,6.0658,131.89,131.86,0.8627372]
[1718996997403,6.0665,131.87,131.86,0.8627372]
[1718996997699,6.0661,131.88,131.86,0.8627372]
[1718996998406,45.0,131.93,131.86,0.8627372]
[1718996998614,6.0665,131.87,131.86,0.8627372]
[1718997000391,26.0665,131.87,131.86,3.72e-05]
[1718997000702,26.0665,131.87,131.78,22.5321]
[1718997000703,6.0695,131.81,131.78,22.5321]
[1718997001276,6.0698,131.8,131.78,22.5321]
[1718997001481,65.0,131.87,131.78,22.5321]
[1718997001697,6.0693,131.81,131.78,22.5321]
[1718997001894,6.0698,131.8,131.78,22.5321]
[1718997002102,6.0695,131.81,131.78,22.5321]
[1718997002300,6.07,131.8,131.78,22.5321]
[1718997002481,45.0,131.86,131.78,22.5321]
[1718997002692,6.0694,131.81,131.78,22.5321]
[1718997002999,6.069,131.82,131.78,22.5321]
[1718997003519,6.0678,131.85,131.78,22.5321]
[1718997003728,6.0671,131.86,131.81,6.0692]
[1718997003884,6.0675,131.85,131.8,6.0696]
[1718997004087,6.0675,131.85,131.81,6.0692]
[1718997004398,260.4,131.94,131.79,15.0123]
[1718997004588,7.850732,131.92,131.81,15.0123]
[1718997004794,7.850732,131.92,131.83,6.2328]
[1718997005099,6.0675,131.85,131.83,6.2328]
[1718997005298,6.0672,131.86,131.83,6.2328]
[1718997005708,6.0662,131.88,131.83,6.2328]
[1718997005922,127.77489211,131.97,131.83,6.2328]
[1718997006094,6.0666,131.87,131.83,6.2328]
[1718997006919,6.0671,131.86,131.83,6.2328]
[1718997007502,6.0666,131.87,131.83,6.2328]
[1718997007693,6.0666,131.87,131.83,12.3012]
[1718997008086,6.0661,131.88,131.84,6.0679]
[1718997008289,6.0658,131.89,131.84,6.0679]
[1718997008589,6.065,131.91,131.86,6.0668]
[1718997008786,6.0653,131.9,131.87,15.1956]
[1718997008993,7.85569053,131.96,131.87,15.1956]
[1718997009199,6.0656,131.89,131.87,15.1956]
[1718997009830,6.0661,131.88,131.87,15.1956]
[1718997009982,6.0666,131.87,131.83,22.795]
[1718997010185,21.164,131.95,131.79,16.5622]
[1718997010490,6.0691,131.82,131.79,16.5622]
[1718997010694,260.4,131.91,131.79,16.5622]
[1718997010919,6.0685,131.83,131.79,16.5622]
[1718997011192,65.0,131.9,131.79,16.5622]
[1718997011405,65.0,131.9,131.82,6.0687]
[1718997011608,6.0662,131.88,131.84,6.0679]
[1718997011933,6.0657,131.89,131.84,6.0679]
[1718997012084,21.164,131.95,131.85,6.5849]
[1718997012285,6.0648,131.91,131.86,22.2895]
[1718997012509,6.0644,131.92,131.87,6.0664]
[1718997013088,20.0,131.94,131.89,6.0655]
[1718997013089,6.0636,131.94,131.89,6.0655]
[1718997013292,268.26295421,131.98,131.86,31.39]
[1718997013488,268.26295421,131.98,131.87,0.34]
[1718997013712,6.0635,131.94,131.89,6.0656]
[1718997013914,6.0627,131.96,131.87,15.5053]
[1718997014427,260.4,131.98,131.94,6.0633]
[1718997014597,21.8719,132.02,131.91,16.3423]
[1718997014913,6.0626,131.96,131.91,16.3423]
[1718997015314,6.0629,131.95,131.91,16.3423]
[1718997015515,7.86237625,132.01,131.91,16.3423]
[1718997015817,6.0624,131.97,131.91,16.3423]
[1718997015997,6.0624,131.97,131.91,22.4068]
[1718997016200,6.0632,131.95,131.91,16.3423]
[1718997016393,6.063,131.95,131.91,16.3423]
[1718997016591,2.43824026,132.0,131.91,16.3423]
[1718997016812,8.49894026,132.0,131.91,16.3423]
[1718997017291,6.0611,131.99,131.91,16.3423]
[1718997017499,2.43824026,132.0,131.91,16.3423]
[1718997017699,6.0621,131.97,131.92,6.0639]
[1718997018003,2.43824026,132.0,131.91,16.3423]
[1718997018202,6.062,131.97,131.92,6.0641]
[1718997018691,2.43824026,132.0,131.91,16.3423]
[1718997018893,6.063,131.95,131.91,16.3423]
[1718997019105,2.43824026,132.0,131.91,16.3423]
[1718997019303,6.0644,131.92,131.87,28.2214]
[1718997019519,22.316,131.99,131.87,28.2214]
[1718997019520,22.316,131.99,131.87,22.1552]
[1718997019732,22.316,131.99,131.88,6.066]
[1718997019733,65.0,131.98,131.88,6.066]
[1718997019905,6.0645,131.92,131.87,28.2213]
[1718997020221,65.0,131.98,131.87,22.1552]
[1718997020222,6.0648,131.91,131.87,22.1552]
[1718997020401,6.0644,131.92,131.87,28.2217]
[1718997020922,6.0648,131.91,131.87,22.1552]
[1718997021131,6.0654,131.9,131.87,22.1552]
[1718997021715,65.0,131.98,131.8,22.5921]
[1718997021716,6.2969,131.91,131.8,22.5921]
[1718997021924,6.0664,131.88,131.8,37.7662]
[1718997022127,6.0666,131.87,131.82,6.0685]
[1718997022425,6.2969,131.91,131.8,37.7662]
[1718997022626,6.0661,131.88,131.83,6.0683]
[1718997022831,6.0657,131.89,131.84,6.0679]
[1718997023404,6.0652,131.9,131.82,15.172]
[1718997023637,6.0652,131.9,131.85,6.0671]
[1718997024811,266.8157,131.95,131.86,21.7653]
[1718997025004,6.0649,131.91,131.86,28.4004]
[1718997025213,6.0652,131.9,131.86,22.3336]
[1718997025422,6.0656,131.89,131.86,22.3336]
[1718997025835,6.0652,131.9,131.86,22.3336]
[1718997026436,6.0649,131.91,131.86,28.4005]
[1718997026635,2.43824026,131.94,131.86,22.3336]
[1718997026934,6.0659,131.89,131.86,22.3336]
[1718997027530,2.43824026,131.94,131.86,22.3336]
[1718997027838,47.43824026,131.94,131.86,22.3336]
[1718997028034,6.0647,131.91,131.87,6.0663]
[1718997028209,6.0647,131.91,131.86,22.3336]
[1718997028523,6.0644,131.92,131.86,22.3336]
[1718997028731,6.0644,131.92,131.87,6.0664]
[1718997028911,6.0644,131.92,131.88,6.066]
[1718997030645,6.0644,131.92,131.87,6.0663]
[1718997030811,6.0647,131.91,131.87,6.0663]
[1718997031323,6.0644,131.92,131.87,6.0663]
[1718997031534,8.50204026,131.94,131.86,22.3336]
[1718997031723,8.50204026,131.94,131.89,6.0656]
[1718997032141,6.0638,131.93,131.89,6.0656]
[1718997032319,2.43824026,131.94,131.86,22.3336]
[1718997032519,2.43824026,131.94,131.9,6.0649]
[1718997032723,6.0626,131.96,131.91,6.0646]
[1718997033644,6.062,131.97,131.93,6.0634]
[1718997033812,6.0616,131.98,131.93,21.1459]
[1718997034112,6.0618,131.98,131.93,21.146]
[1718997034313,6.0612,131.99,131.94,6.0633]
[1718997034914,6.0612,131.99,131.95,6.0628]
[1718997036038,6.0606,132.0,131.93,30.2419]
[1718997036414,7.88893957,132.04,131.97,6.0619]
[1718997036627,6.0599,132.02,131.97,6.0619]
[1718997036846,6.0601,132.01,131.97,6.0619]
[1718997037019,7.8941694,132.06,131.96,6.0623]
[1718997037215,20.0,132.05,131.95,15.1571]
[1718997037417,7.8941694,132.06,131.95,15.1571]
[1718997037418,6.0596,132.03,131.95,15.1571]
[1718997037639,6.0597,132.02,131.96,0.34]
[1718997037839,20.0,132.06,131.98,6.0614]
[1718997038030,6.0597,132.02,131.97,6.0616]
[1718997038547,6.0598,132.02,131.97,6.0619]
[1718997038734,6.0592,132.03,131.98,6.0612]
[1718997038923,6.0597,132.02,131.98,6.0612]
[1718997039328,6.059,132.04,131.98,6.061]
[1718997039524,6.0594,132.03,131.98,6.061]
[1718997039719,35.90414906,132.07,131.93,15.0825]
[1718997039931,6.06,132.02,131.97,6.0619]
[1718997042362,22.43824026,132.06,131.93,15.0825]
[1718997042531,6.0613,131.99,131.94,6.0632]
[1718997043050,6.0606,132.0,131.95,6.0628]
[1718997043335,6.0611,131.99,131.94,6.0631]
[1718997044745,6.0607,132.0,131.95,6.0625]
[1718997044917,22.43824026,132.06,131.93,15.0825]
[1718997045117,6.0603,132.01,131.96,6.0619]
[1718997045336,2.43824026,132.05,131.94,0.34]
[1718997045648,6.0601,132.01,131.96,6.0621]
[1718997046223,2.43824026,132.05,131.94,15.4973]
[1718997046636,6.0595,132.03,131.98,6.0615]
[1718997047333,2.43824026,132.05,131.99,6.0608]
[1718997048017,6.0597,132.02,131.97,6.0617]
[1718997048222,6.0597,132.02,131.97,6.0618]
[1718997049445,6.0597,132.02,131.98,6.0614]
[1718997049744,6.0593,132.03,131.98,6.0614]
[1718997050450,6.0597,132.02,131.98,6.0614]
[1718997050824,6.0597,132.02,131.97,6.0618]
[1718997051023,6.0594,132.03,131.98,6.0613]
[1718997051739,2.43824026,132.05,131.95,6.0627]
[1718997051923,6.0609,132.0,131.95,6.0627]
[1718997052929,10.31731245,132.05,131.94,15.1583]
[1718997053252,6.0595,132.03,131.98,6.0614]
[1718997053450,6.0595,132.03,131.94,15.1583]
[1718997053451,6.0597,132.02,131.96,6.062]
[1718997053754,10.31731245,132.05,131.93,15.0825]
[1718997053952,10.31731245,132.05,131.92,6.3441]
[1718997053953,22.8592,132.03,131.92,6.3441]
[1718997054130,6.0632,131.95,131.9,22.6092]
[1718997054832,6.0626,131.96,131.91,6.0646]
[1718997055157,6.0621,131.97,131.92,6.064]
[1718997056244,45.0,132.02,131.91,6.0646]
[1718997056425,6.0624,131.96,131.91,6.0644]
[1718997056622,6.0624,131.96,131.9,16.5444]
[1718997056853,6.0632,131.95,131.9,22.6093]
[1718997057060,6.0632,131.95,131.91,6.0647]
[1718997057746,6.0626,131.96,131.91,6.0647]
[1718997057949,6.063,131.95,131.9,22.6094]
[1718997058150,51.30244533,132.02,131.9,16.5444]
[1718997058449,20.0,132.01,131.91,6.0644]
[1718997058646,6.0625,131.96,131.91,6.0645]
[1718997059034,20.0,132.01,131.9,16.5444]
[1718997059235,6.0638,131.93,131.9,16.5444]
[1718997059955,45.0,132.0,131.9,22.6095]
[1718997060254,20.0,131.99,131.9,16.5444]
[1718997060438,6.0632,131.95,131.9,22.6094]
[1718997061639,6.0639,131.93,131.9,16.5444]
[1718997062260,6.0639,131.93,131.89,6.5525]
[1718997062463,2.4332244,131.98,131.89,6.5525]
[1718997062661,6.0622,131.97,131.92,6.0641]
[1718997062841,6.0627,131.96,131.91,6.0645]
[1718997063236,6.0627,131.96,131.92,6.0641]
[1718997063562,6.0621,131.97,131.92,6.064]
[1718997063734,2.4332244,131.98,131.95,6.0625]
[1718997064777,2.4332244,131.98,131.94,6.0631]
[1718997064944,6.0611,131.99,131.94,6.0631]
[1718997065743,6.0611,131.99,131.95,6.0629]
[1718997066565,6.30244533,132.02,131.92,29.0]
[1718997066868,6.0618,131.98,131.93,6.0637]
[1718997067072,6.062,131.97,131.92,6.064]
[1718997067447,6.0617,131.98,131.93,6.0637]
[1718997067840,6.0612,131.99,131.94,6.0633]
[1718997068151,6.0608,132.0,131.95,6.0628]
[1718997068336,8.49874026,132.01,131.96,6.0623]
[1718997068539,6.0606,132.0,131.95,6.0626]
[1718997068972,28.97701174,132.03,131.91,15.1618]
[1718997069147,6.0618,131.98,131.93,6.0635]
[1718997070244,6.0612,131.99,131.91,15.1618]
[1718997070440,28.97701174,132.03,131.91,15.1618]
[1718997070645,6.0608,132.0,131.92,15.4996]
[1718997071076,6.0603,132.01,131.94,15.1582]
[1718997071255,6.0606,132.0,131.96,6.0622]
[1718997071463,6.0606,132.0,131.95,6.0626]
[1718997071761,2.43824026,132.02,131.9,16.0041]
[1718997071962,6.0617,131.98,131.93,6.0637]
[1718997072550,6.062,131.97,131.93,6.0637]
[1718997072752,6.062,131.97,131.92,6.064]
[1718997073555,6.0616,131.98,131.93,6.0637]
[1718997073965,6.0612,131.99,131.94,6.0632]
[1718997074352,2.43824026,132.02,131.95,6.0625]
[1718997074353,6.0606,132.0,131.95,6.0625]
[1718997074569,6.0611,131.99,131.94,6.0631]
[1718997075188,6.0615,131.98,131.94,6.0631]
[1718997075889,6.0612,131.99,131.94,6.0631]
[1718997076883,6.0608,132.0,131.92,15.1596]
[1718997077197,2.43824026,132.02,131.97,6.0618]
[1718997077198,6.0603,132.01,131.97,6.0618]
[1718997077361,2.43824026,132.02,131.91,64.503]
[1718997077362,8.49804026,132.02,131.91,64.503]
[1718997077565,8.49804026,132.02,131.97,6.0617]
[1718997078093,8.49814026,132.02,131.97,6.0617]
[1718997079086,6.0602,132.01,131.96,6.0622]
[1718997079789,8.49814026,132.02,131.97,6.0618]
[1718997079975,6.0594,132.03,131.98,6.0613]
[1718997080589,7.87446102,132.08,131.97,15.1545]
[1718997080810,6.057,132.08,132.03,6.0591]
[1718997081304,6.0571,132.08,132.03,6.0591]
[1718997081970,6.0574,132.07,132.02,6.0595]
[1718997082171,6.0571,132.08,132.03,6.0591]
[1718997082368,15.3378,132.09,132.02,15.1491]
[1718997082579,6.0564,132.09,132.04,6.0585]
[1718997083099,6.0372,132.1,132.02,15.1491]
[1718997083264,16.52,132.12,132.02,15.1491]
[1718997083265,6.0557,132.11,132.06,6.0576]
[1718997084166,16.52,132.12,132.06,6.0576]
[1718997084372,6.056,132.1,132.05,6.058]
[1718997085101,6.0556,132.11,132.03,37.2715]
[1718997085274,6.0556,132.11,132.06,6.0574]
[1718997086190,22.5752,132.12,132.05,15.1457]
[1718997086396,6.0555,132.11,132.06,6.0577]
[1718997089483,6.0552,132.12,132.07,6.0572]
[1718997090912,6.0552,132.12,132.08,6.0568]
[1718997091205,15.1365,132.14,132.05,28.94]
[1718997091421,6.0564,132.1,132.05,6.0581]
[1718997091891,6.057,132.08,132.03,50.8944]
[1718997092086,6.0566,132.09,132.04,6.0587]
[1718997092431,15.9149,132.09,132.0,6.1328]
[1718997092703,15.9149,132.09,131.99,15.6822]
[1718997092704,6.0589,132.04,131.99,15.6822]
[1718997092903,6.0575,132.07,132.02,6.0592]
[1718997093680,31.0571,132.09,131.99,15.6822]
[1718997093892,6.0585,132.05,132.0,6.0604]
[1718997094604,6.0585,132.05,132.01,6.0601]
[1718997094978,18.35314026,132.09,132.02,6.0593]
[1718997095210,18.35314026,132.09,132.04,6.0586]
[1718997095415,6.057,132.08,132.04,6.0586]
[1718997096598,24.40974026,132.09,132.04,6.0586]
[1718997096781,6.0566,132.09,132.05,6.0583]
[1718997096986,15.1398,132.11,132.06,6.0577]
[1718997096987,6.0559,132.11,132.06,6.0577]
[1718997097391,6.0561,132.1,132.06,6.0577]
[1718997097690,6.0561,132.1,132.05,6.0581]
[1718997098226,6.057,132.08,132.04,6.0585]
[1718997098417,6.057,132.08,132.03,6.059]
[1718997099225,6.057,132.08,132.04,6.0586]
[1718997099427,6.0566,132.09,132.04,6.0586]
[1718997099609,15.1146,132.12,132.01,28.94]
[1718997099811,6.0578,132.06,132.01,35.0]
[1718997100417,6.0587,132.04,131.99,21.743]
[1718997100794,6.0594,132.03,131.99,15.6822]
[1718997101106,6.5631,132.07,131.99,6.061]
[1718997101527,6.5631,132.07,131.97,6.4134]
[1718997101703,6.0597,132.02,131.97,6.0616]
[1718997101901,6.0597,132.02,131.98,6.0614]
[1718997102203,6.0594,132.03,131.98,6.0614]
[1718997103832,6.0588,132.04,131.99,6.0609]
[1718997106136,6.0592,132.03,131.99,6.0609]
[1718997106615,6.0589,132.04,131.99,6.0609]
[1718997107137,6.0592,132.03,131.99,6.0609]
[1718997107346,6.0584,132.05,132.0,6.0605]
[1718997108107,6.5631,132.07,132.0,15.1515]
[1718997108321,6.057,132.08,132.03,6.0589]
[1718997108614,6.0576,132.07,132.02,6.0595]
[1718997108814,6.0578,132.06,132.02,6.0595]
[1718997109021,15.0709,132.09,132.01,6.7617]
[1718997109022,6.0574,132.07,132.03,6.0591]
[1718997110334,15.1402,132.1,132.02,21.4089]
[1718997110534,6.0586,132.05,132.01,6.5917]
[1718997110752,10.30486154,132.11,131.99,15.3494]
[1718997110951,10.30486154,132.11,131.98,6.0639]
[1718997111152,10.30486154,132.11,131.95,15.309]
[1718997111153,42.1059,132.1,131.95,15.309]
[1718997111316,6.0602,132.01,131.96,6.0621]
[1718997111517,15.1492,132.03,131.95,15.309]
[1718997112042,6.06,132.02,131.97,6.0617]
[1718997112353,6.0586,132.05,132.01,6.0601]
[1718997112520,6.058,132.06,131.99,15.1526]
[1718997112720,6.0575,132.07,131.99,15.1526]
[1718997113046,22.037,132.1,132.03,6.0591]
[1718997113047,6.057,132.08,132.03,6.0591]
[1718997113260,22.037,132.1,132.0,6.7774]
[1718997113549,22.037,132.1,132.01,6.0599]
[1718997113854,6.0579,132.06,132.01,6.0599]
[1718997114234,6.0583,132.05,132.01,6.0599]
[1718997114433,6.0583,132.05,132.0,12.4978]
[1718997114744,17.58034026,132.09,132.02,6.0596]
[1718997114961,6.0571,132.08,132.03,6.0591]
[1718997115255,6.0574,132.07,132.02,6.0596]
[1718997115437,2.43824026,132.09,132.0,6.4374]
[1718997115438,6.0571,132.08,132.03,6.0592]
[1718997115959,6.0574,132.07,132.02,6.0595]
[1718997116327,6.0571,132.08,132.03,6.0591]
[1718997116953,8.49484026,132.09,132.04,6.0587]
[1718997117433,6.057,132.08,132.04,6.0587]
[1718997118034,6.057,132.08,132.03,6.059]
[1718997120162,6.0575,132.07,132.03,6.059]
[1718997120469,6.0575,132.07,132.02,22.5845]
[1718997120671,6.0571,132.08,132.03,6.0592]
[1718997121649,6.0571,132.08,132.03,6.059]
[1718997123568,6.0574,132.07,132.03,6.059]
[1718997123953,2.43824026,132.09,132.01,35.0198]
[1718997124247,6.0589,132.04,131.99,22.2731]
[1718997124455,6.0585,132.05,132.01,6.06]
[1718997124764,2.43824026,132.09,131.99,16.2124]
[1718997124954,6.0577,132.07,132.02,6.0594]
[1718997125772,2.43824026,132.09,132.02,6.0594]
[1718997125955,6.0579,132.06,132.01,6.0599]
[1718997126154,6.0579,132.06,132.02,6.0595]
[1718997126346,6.0583,132.05,132.01,6.06]
[1718997126544,6.0583,132.05,132.0,6.0604]
[1718997126742,6.0583,132.05,131.99,16.2124]
[1718997126743,2.43824026,132.09,131.99,22.2732]
[1718997126950,6.0589,132.04,131.99,22.2732]
[1718997127349,15.1446,132.07,132.01,6.0601]
[1718997127557,6.058,132.06,132.01,6.0601]
[1718997127837,6.0583,132.05,132.01,6.0601]
[1718997128043,6.059,132.04,131.99,22.2733]
[1718997129662,6.0594,132.03,131.97,44.1147]
[1718997129865,6.0594,132.03,131.98,6.0612]
[1718997130751,6.0594,132.03,131.99,6.0609]
[1718997131372,6.0593,132.03,131.98,6.0614]
[1718997131569,7.86691867,132.08,131.98,6.0612]
[1718997131777,6.0597,132.02,131.98,6.0612]
[1718997131960,65.0,132.07,131.98,6.0612]
[1718997132158,6.0592,132.03,131.99,6.061]
[1718997132472,20.0,132.07,131.96,22.7932]
[1718997132473,6.0589,132.04,132.0,6.0605]
[1718997132655,6.0592,132.03,131.99,6.0609]
[1718997133174,6.0589,132.04,131.99,6.0609]
[1718997133363,7.86691867,132.08,132.01,6.0601]
[1718997133558,2.43824026,132.09,132.01,6.0601]
[1718997133762,6.0583,132.05,132.0,6.0603]
[1718997134161,6.0583,132.05,132.01,6.0601]
[1718997134484,6.0576,132.07,132.0,15.1513]
[1718997134662,8.49534026,132.08,132.03,6.0588]
[1718997135458,6.0575,132.07,132.02,6.0596]
[1718997135686,2.43824026,132.08,132.02,6.0596]
[1718997135864,2.43824026,132.08,132.01,28.96]
[1718997135865,6.0586,132.05,132.01,28.96]
[1718997136267,6.0586,132.05,132.0,6.0603]
[1718997136469,6.0586,132.05,132.01,6.06]
[1718997136770,6.0586,132.05,132.0,6.0604]
[1718997137483,2.43824026,132.08,131.96,51.7532]
[1718997137659,6.0603,132.01,131.96,28.8555]
[1718997137860,6.0598,132.02,131.97,6.0619]
[1718997138389,2.43824026,132.08,131.97,6.0619]
[1718997138676,6.0598,132.02,131.96,22.7932]
[1718997138884,6.0597,132.02,131.98,6.0614]
[1718997139059,6.0597,132.02,131.97,6.0617]
[1718997140088,6.0606,132.0,131.95,35.0227]
[1718997140461,6.0606,132.0,131.96,6.0623]
[1718997140985,6.0603,132.01,131.96,6.0623]
[1718997141488,6.0606,132.0,131.96,6.0623]
[1718997141783,6.0606,132.0,131.95,35.0228]
[1718997143485,6.062,131.97,131.93,15.7435]
[1718997143682,6.0617,131.98,131.93,21.8072]
[1718997145193,6.0621,131.97,131.92,35.0238]
[1718997145497,6.0617,131.98,131.93,6.0637]
[1718997145838,7.88934294,132.01,131.94,6.0633]
[1718997145989,6.0613,131.99,131.94,6.0633]
[1718997146369,6.0606,132.0,131.95,6.0627]
[1718997147498,6.0601,132.02,131.97,6.0617]
[1718997147792,6.0599,132.02,131.97,6.0617]
[1718997148591,6.0601,132.01,131.97,6.0617]
[1718997150032,15.8024,132.03,131.95,35.0224]